fUSD/lending_fUSD_20260610
["ID","MTS","AMOUNT","RATE_DAILY","PERIOD"]
[424718514,1781087447000,-500.0,0.00013698,2]
[424718516,1781087447000,-500.0,0.00013698,2]
[424718515,1781087447000,-500.0,0.00013698,2]
[424718521,1781087447000,-2500.0,0.00013699,2]
[424718526,1781087447000,-300.51459543,0.00013778,2]
[424718518,1781087447000,-500.0,0.00013698,2]
[424718528,1781087447000,-300.51459543,0.00013875,2]
[424718546,1781087447000,-300.51459543,0.00014223,2]
[424718530,1781087447000,-300.51459543,0.00013918,2]
[424718529,1781087447000,-245.05795302,0.00013879,2]
[424718531,1781087447000,-8542.71650429,0.00013948,2]
[424718532,1781087447000,-1352.77094979,0.00013949,2]
[424718534,1781087447000,-300.51459543,0.00013997,2]
[424718533,1781087447000,-300.51459543,0.00013958,2]
[424718536,1781087447000,-2000.0,0.0001405,2]
[424718537,1781087447000,-500.0,0.0001405,2]
[424718539,1781087447000,-300.51459543,0.00014068,2]
[424718538,1781087447000,-245.19472552,0.00014053,2]
[424718522,1781087447000,-9999.99,0.00013699,2]
[424718527,1781087447000,-300.51459543,0.00013829,2]
[424718520,1781087447000,-200.0,0.00013699,2]
[424718492,1781087447000,-500.0,0.00013698,2]
[424718512,1781087447000,-500.0,0.00013698,2]
[424718488,1781087447000,-1488.23993443,0.00013613,2]
[424718489,1781087447000,-300.51459543,0.00013659,2]
[424718490,1781087447000,-223.01162119,0.00013698,2]
[424718491,1781087447000,-500.0,0.00013698,2]
[424718493,1781087447000,-500.28276553,0.00013698,2]
[424718494,1781087447000,-500.0,0.00013698,2]
[424718535,1781087447000,-300.51459543,0.00014033,2]
[424718496,1781087447000,-639.43,0.00013698,2]
[424718501,1781087447000,-639.43,0.00013698,2]
[424718495,1781087447000,-647.74813864,0.00013698,2]
[424718500,1781087447000,-639.43,0.00013698,2]
[424718502,1781087447000,-639.43,0.00013698,2]
[424718497,1781087447000,-639.43,0.00013698,2]
[424718498,1781087447000,-639.43,0.00013698,2]
[424718499,1781087447000,-639.43,0.00013698,2]
[424718503,1781087447000,-639.43,0.00013698,2]
[424718507,1781087447000,-500.0,0.00013698,2]
[424718505,1781087447000,-500.0,0.00013698,2]
[424718513,1781087447000,-500.0,0.00013698,2]
[424718508,1781087447000,-500.0,0.00013698,2]
[424718506,1781087447000,-500.0,0.00013698,2]
[424718504,1781087447000,-500.0,0.00013698,2]
[424718510,1781087447000,-500.0,0.00013698,2]
[424718509,1781087447000,-500.0,0.00013698,2]
[424718511,1781087447000,-500.0,0.00013698,2]
[424718519,1781087447000,-616.30777431,0.00013698,2]
[424718544,1781087447000,-163.19,0.00014208,2]
[424718552,1781087447000,-300.51459543,0.00014357,2]
[424718543,1781087447000,-300.51459543,0.00014194,2]
[424718576,1781087447000,-300.51459543,0.00014646,2]
[424718541,1781087447000,-300.51459543,0.00014133,2]
[424718571,1781087447000,-328.957318,0.000146,2]
[424718577,1781087447000,-152.0,0.00014685,2]
[424718574,1781087447000,-300.51459543,0.00014626,2]
[424718580,1781087447000,-1555.5,0.00014758,2]
[424718575,1781087447000,-200.0,0.00014638,2]
[424718578,1781087447000,-8560.89183724,0.000147,2]
[424718590,1781087447000,-151.0,0.00014997,2]
[424718586,1781087447000,-335.35622312,0.000149,2]
[424718584,1781087447000,-200.0,0.00014879,2]
[424718573,1781087447000,-300.51459543,0.00014605,2]
[424718585,1781087447000,-522.99194051,0.000149,2]
[424718588,1781087447000,-277.38263207,0.0001499,2]
[424718591,1781087447000,-300.0,0.00014998,2]
[424718581,1781087447000,-2273.446,0.000148,2]
[424718589,1781087447000,-151.0,0.00014997,2]
[424718582,1781087447000,-184.288,0.000148,2]
[424718583,1781087447000,-2000.0,0.000148,2]
[424718595,1781087447000,-639.43,0.00014999,2]
[424718592,1781087447000,-300.0,0.00014998,2]
[424718596,1781087447000,-639.43,0.00014999,2]
[424718594,1781087447000,-250.0,0.00014999,2]
[424718593,1781087447000,-300.0,0.00014998,2]
[424718587,1781087447000,-1553.6822356,0.000149,2]
[424718570,1781087447000,-1252.0,0.00014598,2]
[424718572,1781087447000,-986.911956,0.000146,2]
[424718566,1781087447000,-300.51459543,0.00014564,2]
[424718542,1781087447000,-300.51459543,0.00014164,2]
[424718540,1781087447000,-300.51459543,0.00014101,2]
[424718545,1781087447000,-1500.0,0.0001421,2]
[424718547,1781087447000,-300.51459543,0.00014251,2]
[424718557,1781087447000,-340.7,0.00014418,2]
[424718548,1781087447000,-300.51459543,0.00014279,2]
[424718556,1781087447000,-300.51459543,0.00014406,2]
[424718549,1781087447000,-300.51459543,0.00014305,2]
[424718579,1781087447000,-200.0,0.00014703,2]
[424718553,1781087447000,-150.0,0.00014381,2]
[424718554,1781087447000,-300.51459543,0.00014382,2]
[424718550,1781087447000,-300.51459543,0.00014332,2]
[424718555,1781087447000,-2000.0,0.000144,2]
[424718558,1781087447000,-300.51459543,0.0001443,2]
[424718563,1781087447000,-300.51459543,0.00014499,2]
[424718551,1781087447000,-1051.38,0.00014347,2]
[424718568,1781087447000,-202.16,0.0001458,2]
[424718567,1781087447000,-199.08,0.0001458,2]
[424718562,1781087447000,-300.51459543,0.00014476,2]
[424718569,1781087447000,-300.51459543,0.00014585,2]
[424718565,1781087447000,-300.51459543,0.00014542,2]
[424718561,1781087447000,-283.96,0.00014463,2]
[424718559,1781087447000,-300.51459543,0.00014453,2]
[424718560,1781087447000,-2000.0,0.00014462,2]
[424718564,1781087447000,-300.51459543,0.00014521,2]
[424718597,1781087448000,-639.43,0.00014999,2]
[424718604,1781087448000,-639.43,0.00014999,2]
[424718598,1781087448000,-639.43,0.00014999,2]
[424718600,1781087448000,-639.43,0.00014999,2]
[424718601,1781087448000,-152.0,0.00014999,2]
[424718602,1781087448000,-639.43,0.00014999,2]
[424718607,1781087448000,-300.0,0.00014999,2]
[424718610,1781087448000,-300.0,0.00014999,2]
[424718599,1781087448000,-639.43,0.00014999,2]
[424718603,1781087448000,-639.43,0.00014999,2]
[424718615,1781087448000,-262288.74485209,0.00015,2]
[424718613,1781087448000,-300.0,0.00014999,2]
[424718614,1781087448000,-300.0,0.00014999,2]
[424718612,1781087448000,-300.0,0.00014999,2]
[424718608,1781087448000,-300.0,0.00014999,2]
[424718611,1781087448000,-666.0,0.00014999,2]
[424718609,1781087448000,-300.0,0.00014999,2]
[424718605,1781087448000,-639.43,0.00014999,2]
[424718606,1781087448000,-170.15176765,0.00014999,2]
[424718616,1781087449000,-517.04953107,0.00015,2]
[424718619,1781087772000,1000.0,5.972e-05,2]
[424718620,1781087773000,517.69,5.972e-05,2]
[424718621,1781087784000,219.07,0.00030082,120]
[424718622,1781087857000,2000.0,0.00030136,120]
[424718623,1781087877000,298.0,0.00030136,120]
[424718624,1781088153000,517.66,6.515e-05,2]
[424718627,1781088174000,152.0,8.039e-05,7]
[424718626,1781088174000,152.0,8.039e-05,7]
[424718625,1781088174000,152.0,8.027e-05,7]
[424718630,1781088480000,152.0,8.126e-05,7]
[424718629,1781088480000,152.0,8.114e-05,7]
[424718631,1781088481000,152.0,8.126e-05,7]
[424718633,1781088482000,152.0,8.142e-05,7]
[424718632,1781088482000,152.0,8.142e-05,7]
[424718634,1781088504000,152.0,8.13e-05,7]
[424718635,1781088505000,152.0,8.126e-05,7]
[424718638,1781088555000,-150.0,7.289e-05,2]
[424718639,1781088562000,152.0,8.065e-05,7]
[424718641,1781088604000,4049.53,0.00030136,120]
[424718660,1781088632000,-216.06293953,8.392e-05,2]
[424718661,1781088632000,-884.03,8.424e-05,2]
[424718659,1781088632000,-300.0,8.392e-05,2]
[424718657,1781088632000,-300.0,8.392e-05,2]
[424718656,1781088632000,-4000.0,8.392e-05,2]
[424718655,1781088632000,-4000.0,8.392e-05,2]
[424718651,1781088632000,-155.63,8.382e-05,2]
[424718654,1781088632000,-4000.0,8.392e-05,2]
[424718653,1781088632000,-4000.0,8.392e-05,2]
[424718648,1781088632000,-250.0,8.018e-05,2]
[424718646,1781088632000,-250.0,7.928e-05,2]
[424718645,1781088632000,-150.0,7.858e-05,2]
[424718649,1781088632000,-500.0,8.382e-05,2]
[424718650,1781088632000,-2000.0,8.382e-05,2]
[424718647,1781088632000,-278.0,7.934e-05,2]
[424718643,1781088632000,-150.0,7.705e-05,2]
[424718644,1781088632000,-150.0,7.782e-05,2]
[424718642,1781088632000,-250.0,7.629e-05,2]
[424718662,1781088632000,-2726.05,8.449e-05,2]
[424718652,1781088632000,-4000.0,8.392e-05,2]
[424718665,1781088632000,-1651.6,8.924e-05,2]
[424718658,1781088632000,-300.0,8.392e-05,2]
[424718663,1781088632000,-161.41,8.452e-05,2]
[424718666,1781088632000,-2000.0,8.941e-05,2]
[424718701,1781088632000,-141197.56594732,9.772e-05,2]
[424718698,1781088632000,-152763.46319822,9.772e-05,2]
[424718690,1781088632000,-4180.5245,9.772e-05,2]
[424718695,1781088632000,-139826.33670099,9.772e-05,2]
[424718688,1781088632000,-2903.61,9.679e-05,2]
[424718684,1781088632000,-1113.74,9.494e-05,2]
[424718687,1781088632000,-160.76,9.646e-05,2]
[424718682,1781088632000,-2000.0,9.43e-05,2]
[424718678,1781088632000,-267.94,9.357e-05,2]
[424718693,1781088632000,-174294.54074952,9.772e-05,2]
[424718676,1781088632000,-200.0,9.183e-05,2]
[424718672,1781088632000,-438.61461221,9.072e-05,2]
[424718669,1781088632000,-960.26288252,9.072e-05,2]
[424718670,1781088632000,-794.19556631,9.072e-05,2]
[424718668,1781088632000,-2690.23348114,9.072e-05,2]
[424718671,1781088632000,-1220.82663555,9.072e-05,2]
[424718674,1781088632000,-507.06744467,9.072e-05,2]
[424718680,1781088632000,-300.0,9.42e-05,7]
[424718667,1781088632000,-150.0,9.071e-05,2]
[424718664,1781088632000,-5734.56,8.768e-05,2]
[424718711,1781088638000,-750.0,9.772e-05,2]
[424718712,1781088639000,-775573.69017163,9.772e-05,2]
[424718732,1781088640000,-564.59352451,9.872e-05,2]
[424718735,1781088640000,-564.59352451,9.872e-05,2]
[424718733,1781088640000,-564.59352451,9.872e-05,2]
[424718734,1781088640000,-564.59352451,9.872e-05,2]
[424718738,1781088640000,-564.59352451,9.872e-05,2]
[424718740,1781088640000,-564.59352451,9.872e-05,2]
[424718736,1781088640000,-564.59352451,9.872e-05,2]
[424718744,1781088640000,-564.59352451,9.872e-05,2]
[424718739,1781088640000,-564.59352451,9.872e-05,2]
[424718742,1781088640000,-564.59352451,9.872e-05,2]
[424718741,1781088640000,-564.59352451,9.872e-05,2]
[424718743,1781088640000,-564.59352451,9.872e-05,2]
[424718745,1781088640000,-564.59352451,9.872e-05,2]
[424718731,1781088640000,-564.59352451,9.872e-05,2]
[424718737,1781088640000,-564.59352451,9.872e-05,2]
[424718729,1781088640000,-564.59352451,9.872e-05,2]
[424718718,1781088640000,-155.63,9.779e-05,2]
[424718726,1781088640000,-564.59352451,9.872e-05,2]
[424718746,1781088640000,-564.59352451,9.872e-05,2]
[424718713,1781088640000,-514.85500988,9.772e-05,2]
[424718714,1781088640000,-721.12217521,9.772e-05,2]
[424718716,1781088640000,-822.2416,9.773e-05,2]
[424718715,1781088640000,-114358.42604723,9.772e-05,2]
[424718717,1781088640000,-2500.0,9.773e-05,2]
[424718719,1781088640000,-1052.73964308,9.87e-05,2]
[424718720,1781088640000,-1000.0,9.87e-05,2]
[424718721,1781088640000,-500.0,9.872e-05,2]
[424718722,1781088640000,-246.79614873,9.872e-05,2]
[424718723,1781088640000,-564.59352451,9.872e-05,2]
[424718725,1781088640000,-564.59352451,9.872e-05,2]
[424718724,1781088640000,-256.43682364,9.872e-05,2]
[424718730,1781088640000,-564.59352451,9.872e-05,2]
[424718727,1781088640000,-564.59352451,9.872e-05,2]
[424718728,1781088640000,-564.59352451,9.872e-05,2]
[424718749,1781088640000,-564.59352451,9.872e-05,2]
[424718760,1781088640000,-564.59352451,9.872e-05,2]
[424718748,1781088640000,-564.59352451,9.872e-05,2]
[424718768,1781088640000,-564.59352451,9.872e-05,2]
[424718769,1781088640000,-564.59352451,9.872e-05,2]
[424718772,1781088640000,-564.59352451,9.872e-05,2]
[424718773,1781088640000,-564.59352451,9.872e-05,2]
[424718774,1781088640000,-564.59352451,9.872e-05,2]
[424718771,1781088640000,-564.59352451,9.872e-05,2]
[424718778,1781088640000,-564.59352451,9.872e-05,2]
[424718777,1781088640000,-564.59352451,9.872e-05,2]
[424718775,1781088640000,-564.59352451,9.872e-05,2]
[424718779,1781088640000,-564.59352451,9.872e-05,2]
[424718781,1781088640000,-564.59352451,9.872e-05,2]
[424718780,1781088640000,-564.59352451,9.872e-05,2]
[424718782,1781088640000,-564.59352451,9.872e-05,2]
[424718783,1781088640000,-564.59352451,9.872e-05,2]
[424718747,1781088640000,-564.59352451,9.872e-05,2]
[424718770,1781088640000,-564.59352451,9.872e-05,2]
[424718767,1781088640000,-564.59352451,9.872e-05,2]
[424718776,1781088640000,-564.59352451,9.872e-05,2]
[424718764,1781088640000,-564.59352451,9.872e-05,2]
[424718750,1781088640000,-564.59352451,9.872e-05,2]
[424718751,1781088640000,-564.59352451,9.872e-05,2]
[424718765,1781088640000,-564.59352451,9.872e-05,2]
[424718752,1781088640000,-564.59352451,9.872e-05,2]
[424718753,1781088640000,-564.59352451,9.872e-05,2]
[424718755,1781088640000,-564.59352451,9.872e-05,2]
[424718756,1781088640000,-564.59352451,9.872e-05,2]
[424718754,1781088640000,-564.59352451,9.872e-05,2]
[424718757,1781088640000,-564.59352451,9.872e-05,2]
[424718761,1781088640000,-564.59352451,9.872e-05,2]
[424718759,1781088640000,-564.59352451,9.872e-05,2]
[424718766,1781088640000,-564.59352451,9.872e-05,2]
[424718763,1781088640000,-564.59352451,9.872e-05,2]
[424718762,1781088640000,-564.59352451,9.872e-05,2]
[424718758,1781088640000,-564.59352451,9.872e-05,2]
[424718822,1781088641000,-1116.17995084,0.000109,2]
[424718821,1781088641000,-2000.0,0.00010477,2]
[424718820,1781088641000,-160.24,0.0001033,2]
[424718819,1781088641000,-168.35478083,0.0001,2]
[424718816,1781088641000,-215.92376884,9.935e-05,2]
[424718817,1781088641000,-255.0,9.978e-05,2]
[424718824,1781088641000,-150.0,0.00010959,2]
[424718815,1781088641000,-2000.0,9.873e-05,2]
[424718813,1781088641000,-2528.57242765,9.872e-05,2]
[424718818,1781088641000,-628.7,9.988e-05,2]
[424718823,1781088641000,-166.66,0.00010959,2]
[424718830,1781088641000,-300.0,0.00011098,2]
[424718825,1781088641000,-150.0,0.00010959,2]
[424718828,1781088641000,-166.66,0.00011068,2]
[424718827,1781088641000,-985.78,0.00010989,2]
[424718829,1781088641000,-300.0,0.00011098,2]
[424718832,1781088641000,-300.0,0.00011098,2]
[424718831,1781088641000,-702.55853752,0.00011098,2]
[424718835,1781088641000,-54530.88430362,0.00011099,2]
[424718833,1781088641000,-300.0,0.00011098,2]
[424718834,1781088641000,-300.0,0.00011098,2]
[424718814,1781088641000,-2528.57242758,9.872e-05,2]
[424718837,1781088641000,-811.66256987,0.00011099,2]
[424718826,1781088641000,-433.0,0.00010975,2]
[424718810,1781088641000,-2528.57242765,9.872e-05,2]
[424718793,1781088641000,-2528.57242765,9.872e-05,2]
[424718809,1781088641000,-2528.57242765,9.872e-05,2]
[424718836,1781088641000,-811.66256991,0.00011099,2]
[424718787,1781088641000,-2528.57242765,9.872e-05,2]
[424718786,1781088641000,-2528.57242765,9.872e-05,2]
[424718784,1781088641000,-564.59352451,9.872e-05,2]
[424718788,1781088641000,-2528.57242765,9.872e-05,2]
[424718785,1781088641000,-2528.57242765,9.872e-05,2]
[424718789,1781088641000,-2528.57242765,9.872e-05,2]
[424718790,1781088641000,-2528.57242765,9.872e-05,2]
[424718791,1781088641000,-2528.57242765,9.872e-05,2]
[424718794,1781088641000,-2528.57242765,9.872e-05,2]
[424718797,1781088641000,-2528.57242765,9.872e-05,2]
[424718807,1781088641000,-2528.57242765,9.872e-05,2]
[424718795,1781088641000,-2528.57242765,9.872e-05,2]
[424718792,1781088641000,-2528.57242765,9.872e-05,2]
[424718798,1781088641000,-2528.57242765,9.872e-05,2]
[424718799,1781088641000,-2528.57242765,9.872e-05,2]
[424718802,1781088641000,-2528.57242765,9.872e-05,2]
[424718801,1781088641000,-2528.57242765,9.872e-05,2]
[424718800,1781088641000,-2528.57242765,9.872e-05,2]
[424718803,1781088641000,-2528.57242765,9.872e-05,2]
[424718804,1781088641000,-2528.57242765,9.872e-05,2]
[424718812,1781088641000,-2528.57242765,9.872e-05,2]
[424718806,1781088641000,-2528.57242765,9.872e-05,2]
[424718808,1781088641000,-2528.57242765,9.872e-05,2]
[424718796,1781088641000,-2528.57242765,9.872e-05,2]
[424718839,1781088641000,-166.66,0.00011178,2]
[424718887,1781088641000,-624.45,0.00013456,2]
[424718840,1781088641000,-348.54,0.0001122,2]
[424718870,1781088641000,-229.0,0.00012432,2]
[424718873,1781088641000,-165.425,0.00012432,2]
[424718869,1781088641000,-221.0,0.00012432,2]
[424718871,1781088641000,-1358.0,0.00012432,2]
[424718874,1781088641000,-1274.0,0.00012432,2]
[424718872,1781088641000,-3556.0,0.00012432,2]
[424718876,1781088641000,-933.0,0.00012432,2]
[424718875,1781088641000,-382.0,0.00012432,2]
[424718878,1781088641000,-155.63,0.00012573,2]
[424718877,1781088641000,-419.0,0.00012432,2]
[424718881,1781088641000,-500.0,0.00012904,2]
[424718867,1781088641000,-223.0,0.00012432,2]
[424718883,1781088641000,-54530.88430358,0.00012952,2]
[424718880,1781088641000,-811.66256987,0.00012851,2]
[424718884,1781088641000,-3001.83,0.00013253,2]
[424718886,1781088641000,-1116.17995082,0.00013409,2]
[424718888,1781088641000,-1500.0,0.00013513,2]
[424718885,1781088641000,-1252.0,0.00013279,2]
[424718890,1781088641000,-171.468713,0.00013582,2]
[424718889,1781088641000,-205.13217745,0.00013538,2]
[424718891,1781088641000,-2000.0,0.00013674,2]
[424718893,1781088641000,-300.0,0.00013689,2]
[424718892,1781088641000,-500.0,0.00013674,2]
[424718841,1781088641000,-166.66,0.00011288,2]
[424718882,1781088641000,-160.24,0.00012913,2]
[424718868,1781088641000,-225.0,0.00012432,2]
[424718879,1781088641000,-2000.0,0.00012573,2]
[424718863,1781088641000,-736.0,0.00012073,2]
[424718866,1781088641000,-228.0,0.00012432,2]
[424718842,1781088641000,-54530.88430358,0.00011388,2]
[424718844,1781088641000,-1000.0,0.00011474,2]
[424718843,1781088641000,-166.66,0.00011397,2]
[424718845,1781088641000,-500.0,0.00011507,2]
[424718847,1781088641000,-2000.0,0.00011525,2]
[424718846,1781088641000,-166.66,0.00011507,2]
[424718849,1781088641000,-300.0,0.00011745,2]
[424718848,1781088641000,-3102.2406629,0.00011632,2]
[424718850,1781088641000,-300.0,0.00011745,2]
[424718851,1781088641000,-300.0,0.00011745,2]
[424718852,1781088641000,-313.04371724,0.00011745,2]
[424718838,1781088641000,-155.63,0.00011176,2]
[424718855,1781088641000,-2726.05,0.00011829,2]
[424718853,1781088641000,-161.0,0.00011783,2]
[424718865,1781088641000,-228.0,0.00012432,2]
[424718861,1781088641000,-151.0,0.00012,2]
[424718862,1781088641000,-151.0,0.00012,2]
[424718860,1781088641000,-151.0,0.00012,2]
[424718864,1781088641000,-219.07,0.00012329,2]
[424718857,1781088641000,-300.0,0.0001188,2]
[424718858,1781088641000,-624.45,0.00011961,2]
[424718856,1781088641000,-811.66256987,0.00011843,2]
[424718854,1781088641000,-4228.02,0.00011783,2]
[424718859,1781088641000,-151.0,0.00012,2]
[424718932,1781088642000,-500.0,0.00013699,2]
[424718924,1781088642000,-9999.99,0.00013699,2]
[424718925,1781088642000,-148222.59,0.00013699,2]
[424718926,1781088642000,-9999.99,0.00013699,2]
[424718927,1781088642000,-1218.95,0.00013699,2]
[424718930,1781088642000,-299.99,0.00013699,2]
[424718931,1781088642000,-500.0,0.00013699,2]
[424718923,1781088642000,-746.22,0.00013699,2]
[424718928,1781088642000,-3439.06,0.00013699,2]
[424718929,1781088642000,-24999.99,0.00013699,2]
[424718934,1781088642000,-348.37592208,0.00013699,2]
[424718939,1781088642000,-500.0,0.00013699,2]
[424718936,1781088642000,-500.0,0.00013699,2]
[424718938,1781088642000,-500.0,0.00013699,2]
[424718937,1781088642000,-500.0,0.00013699,2]
[424718935,1781088642000,-500.0,0.00013699,2]
[424718942,1781088642000,-169.73,0.00013859,2]
[424718940,1781088642000,-948.98,0.00013823,2]
[424718943,1781088642000,-169.73,0.00013859,2]
[424718941,1781088642000,-169.73,0.00013859,2]
[424718945,1781088642000,-300.0,0.00013985,2]
[424718944,1781088642000,-811.66256987,0.00013859,2]
[424718922,1781088642000,-150.99,0.00013699,2]
[424718933,1781088642000,-500.0,0.00013699,2]
[424718921,1781088642000,-200.0,0.00013699,2]
[424718947,1781088642000,-154.81,0.00014024,2]
[424718918,1781088642000,-500.0,0.00013698,2]
[424718895,1781088642000,-300.0,0.00013689,2]
[424718896,1781088642000,-507.15165324,0.00013698,2]
[424718894,1781088642000,-300.0,0.00013689,2]
[424718898,1781088642000,-500.0,0.00013698,2]
[424718897,1781088642000,-500.0,0.00013698,2]
[424718899,1781088642000,-500.0,0.00013698,2]
[424718901,1781088642000,-500.0,0.00013698,2]
[424718902,1781088642000,-500.0,0.00013698,2]
[424718903,1781088642000,-500.0,0.00013698,2]
[424718904,1781088642000,-500.0,0.00013698,2]
[424718905,1781088642000,-500.0,0.00013698,2]
[424718917,1781088642000,-500.0,0.00013698,2]
[424718908,1781088642000,-500.0,0.00013698,2]
[424718907,1781088642000,-500.0,0.00013698,2]
[424718909,1781088642000,-500.0,0.00013698,2]
[424718910,1781088642000,-161.54562137,0.00013698,2]
[424718911,1781088642000,-590.47777373,0.00013698,2]
[424718913,1781088642000,-500.0,0.00013698,2]
[424718912,1781088642000,-240.98630425,0.00013698,2]
[424718915,1781088642000,-500.0,0.00013698,2]
[424718914,1781088642000,-500.0,0.00013698,2]
[424718916,1781088642000,-500.0,0.00013698,2]
[424718920,1781088642000,-528.37,0.00013699,2]
[424718919,1781088642000,-500.0,0.00013698,2]
[424718906,1781088642000,-500.0,0.00013698,2]
[424718946,1781088642000,-250.0,0.00014,2]
[424718900,1781088642000,-500.0,0.00013698,2]
[424718950,1781088642000,-2000.0,0.000142,2]
[424718978,1781088642000,-160.0,0.000148,2]
[424718979,1781088642000,-2000.0,0.000148,2]
[424718981,1781088642000,-811.66256987,0.00014868,2]
[424718982,1781088642000,-200.0,0.0001488,2]
[424718980,1781088642000,-350.0,0.00014865,2]
[424718985,1781088642000,-300.0,0.00014886,2]
[424718984,1781088642000,-300.0,0.00014886,2]
[424718986,1781088642000,-300.0,0.00014886,2]
[424718987,1781088642000,-514053.0525665,0.00014887,2]
[424718988,1781088642000,-13632.7053322,0.00014887,2]
[424718989,1781088642000,-151.0,0.00014887,2]
[424718977,1781088642000,-10000.0,0.00014787,2]
[424718991,1781088642000,-279.757438,0.00014887,2]
[424718995,1781088642000,-500.0,0.00014887,2]
[424718994,1781088642000,-500.0,0.00014887,2]
[424718993,1781088642000,-500.0,0.00014887,2]
[424718996,1781088642000,-500.0,0.00014887,2]
[424719002,1781088642000,-500.0,0.00014887,2]
[424718998,1781088642000,-500.0,0.00014887,2]
[424718997,1781088642000,-500.0,0.00014887,2]
[424719000,1781088642000,-500.0,0.00014887,2]
[424719001,1781088642000,-500.0,0.00014887,2]
[424719003,1781088642000,-500.0,0.00014887,2]
[424718948,1781088642000,-1555.5,0.00014061,2]
[424718992,1781088642000,-151.0,0.00014887,2]
[424718976,1781088642000,-1860.56572692,0.00014787,2]
[424718990,1781088642000,-151.0,0.00014887,2]
[424718973,1781088642000,-300.0,0.00014702,2]
[424718975,1781088642000,-279.7604131,0.00014787,2]
[424718949,1781088642000,-948.98,0.00014152,2]
[424718952,1781088642000,-161.412911,0.00014214,2]
[424718953,1781088642000,-174.636749,0.00014214,2]
[424718951,1781088642000,-353.177842,0.00014214,2]
[424718954,1781088642000,-247.63656,0.00014214,2]
[424718955,1781088642000,-208.071331,0.00014285,2]
[424718957,1781088642000,-221.033887,0.00014356,2]
[424718958,1781088642000,-1818.757,0.00014453,2]
[424718959,1781088642000,-184.288,0.00014453,2]
[424718961,1781088642000,-300.0,0.00014503,2]
[424718965,1781088642000,-2000.0,0.000146,2]
[424718956,1781088642000,-319.219004,0.00014285,2]
[424718971,1781088642000,-5707.26122482,0.000147,2]
[424718964,1781088642000,-54530.88430358,0.00014516,2]
[424718972,1781088642000,-160.0,0.000147,2]
[424718974,1781088642000,-420.36773843,0.00014787,2]
[424718970,1781088642000,-123.57805109,0.00014692,2]
[424718967,1781088642000,-1465.0,0.00014613,2]
[424718969,1781088642000,-226.42194891,0.00014692,2]
[424718966,1781088642000,-1613.0535,0.00014609,2]
[424718962,1781088642000,-300.0,0.00014503,2]
[424718960,1781088642000,-948.98,0.00014482,2]
[424718963,1781088642000,-300.0,0.00014503,2]
[424718968,1781088642000,-328.957318,0.00014647,2]
[424719045,1781088643000,-500.0,0.00014887,2]
[424719043,1781088643000,-500.0,0.00014887,2]
[424719042,1781088643000,-500.0,0.00014887,2]
[424719041,1781088643000,-500.0,0.00014887,2]
[424719040,1781088643000,-500.0,0.00014887,2]
[424719031,1781088643000,-500.0,0.00014887,2]
[424719039,1781088643000,-500.0,0.00014887,2]
[424719036,1781088643000,-500.0,0.00014887,2]
[424719037,1781088643000,-500.0,0.00014887,2]
[424719035,1781088643000,-500.0,0.00014887,2]
[424719044,1781088643000,-500.0,0.00014887,2]
[424719038,1781088643000,-500.0,0.00014887,2]
[424719046,1781088643000,-500.0,0.00014887,2]
[424719060,1781088643000,-500.0,0.00014887,2]
[424719048,1781088643000,-500.0,0.00014887,2]
[424719049,1781088643000,-500.0,0.00014887,2]
[424719053,1781088643000,-500.0,0.00014887,2]
[424719052,1781088643000,-500.0,0.00014887,2]
[424719050,1781088643000,-500.0,0.00014887,2]
[424719051,1781088643000,-500.0,0.00014887,2]
[424719057,1781088643000,-500.0,0.00014887,2]
[424719058,1781088643000,-500.0,0.00014887,2]
[424719055,1781088643000,-500.0,0.00014887,2]